Cogmind - Beta 15 @@@ ROGUE MODE // 2025.07.18 @ 19:45:28 Player: Voldy Result: Destroyed by DT-P6W(R) with Subdweller Laser Performance ------------- Evolutions (0) 0 Regions Visited (3) 600 Robots Destroyed (12) 60 Value Destroyed (271) 271 Prototype IDs (0) 0 Alien Tech Used (0) 0 Bonus (-9) -9 TOTAL SCORE: 922 Bonus ------- Follower Combat Kills 14 Friendly Fire -23 Cogmind --------- Core Integrity 0/250 Matter 156/300 Energy 100/100 System Corruption 0% Temperature Cool (6) Movement Walking (130) Location -10/Subcaves Parts ------- > --- POWER (1) -------- (None) > --- PROPULSION (2) --- Makeshift Leg Myomer Leg > --- UTILITY (2) ------ Small Storage Unit > --- WEAPON (2) ------- (None) > --- INVENTORY (8) ---- Light Ion Engine Subdweller Power Source Peak State ------------ > --- POWER ------------ Light Ion Engine > --- PROPULSION ------- Makeshift Leg Myomer Leg > --- UTILITY ---------- Small Storage Unit Phase Shifter > --- WEAPON ----------- Datajack > --- INVENTORY -------- Light Ion Engine Subdweller Power Source [Rating: 19] Favorites ----------- Power Light Ion Engine Engine Light Ion Engine Propulsion Light Treads Treads Light Treads Leg Makeshift Leg Utility Small Storage Unit Device Phase Shifter Storage Small Storage Unit Protection Scrap Shield Weapon Datajack Energy Gun EM Pulse Gun Ballistic Gun Light Assault Rifle Launcher Grenade Launcher Special Melee Weapon Datajack Build | -11 -10 -10 -10 ------- Run | Yrd Mat Min Sub Slots Evolved . | . . . . Power . | . . . . Propulsion . | . . . . Utility . | . . . . Weapon . | . . . . Parts Attached 14 | 4 3 2 5 Power 2 | 1 . 1 . Engine 2 | 1 . 1 . Core . | . . . . Reactor . | . . . . Propulsion 4 | 2 . . 2 Treads 2 | 2 . . . Leg 2 | . . . 2 Wheel . | . . . . Hover . | . . . . Flight . | . . . . Utility 3 | 1 . . 2 Device 1 | . . . 1 Storage 1 | 1 . . . Processor . | . . . . Hackware . | . . . . Protection 1 | . . . 1 Artifact . | . . . . Weapon 5 | . 3 1 1 Energy Gun 2 | . 1 . 1 Energy Cannon . | . . . . Ballistic Gun 1 | . 1 . . Ballistic Cannon . | . . . . Launcher 1 | . 1 . . Special Weapon . | . . . . Impact Weapon . | . . . . Slashing Weapon . | . . . . Piercing Weapon . | . . . . Special Melee Weapon 1 | . . 1 . Unidentified Prototypes . | . . . . Parts Lost 9 | . 2 3 4 Power 2 | . . 1 1 Propulsion 2 | . . 1 1 Utility 1 | . . . 1 Weapon 4 | . 2 1 1 Highest Loss Streak 4 | . 1 3 4 To Critical Strikes . | . . . . Average Backups 2 | 2 2 1 2 Power 1 | 1 1 . 1 Propulsion . | . . . . Utility . | . . . . Weapon . | 1 . . . Tool/Special . | . . . . Unused Backups 3 | 1 . . 2 Power 2 | . . . 2 Propulsion 1 | 1 . . . Utility . | . . . . Weapon . | . . . . Tool/Special . | . . . . Average Slot Usage (%) 68 | . 82 59 62 Engine 14 | . 14 14 14 Treads 19 | . 28 16 11 Leg 1 | . . . 4 Storage 11 | . 14 14 4 Protection 2 | . . . 9 Energy Gun 3 | . 7 . 4 Ballistic Gun 6 | . 13 3 . Launcher 1 | . 4 . . Special Melee Weapon 7 | . . 10 12 Peak Build Rating 19 | 4 6 5 19 Average Rating 5 | 3 5 4 8 On Entrance 3 | . 4 5 4 Naked Turns . | . . . . Heaviest Build 26 | 10 14 11 26 Greatest Support 45 | 40 40 40 45 Greatest Overweight (x) 7 | . . . 7 Average Overweight (x) . | . . . . Largest Inventory Capacity 8 | 8 8 8 8 Average Capacity 7 | 7 8 8 5 Most Carried 5 | 5 3 2 4 Average Carried 2 | 2 2 1 2 Final Capacity 8 | 8 8 8 8 Final Carried 3 | 3 2 1 2 Class Distribution -------------------- 100% | Mutant Dominant Class ---------------- Mutant | -10/Materials Mutant | -10/Mines Mutant | -10/Subcaves Resources | -11 -10 -10 -10 ----------- Run | Yrd Mat Min Sub Matter Collected 320 | 222 15 . 83 Remotely . | . . . . Salvage Created 225 | . 225 . . Parts 17 | . 17 . . Haulers Intercepted . | . . . . Recyclers Shooed 1 | . 1 . . Parts Field Recycled . | . . . . Retrieved Matter . | . . . . Parts Self-Destructed . | . . . . Prevented . | . . . . Kills | -11 -10 -10 -10 ------- Run | Yrd Mat Min Sub Combat Hostiles Destroyed 9 | . 9 . . Guns 5 | . 5 . . AOE 4 | . 4 . . Classes Destroyed 4 | . 4 . . Worker 1 | . 1 . . Builder 2 | . 2 . . Swarmer 3 | . 3 . . Grunt 6 | . 6 . . Best Kill Streak 7 | . 7 . . Combat Bots Only 6 | . 6 . . Max Kills in Single Turn 1 | . 1 . . Gunslinging . | . . . . Exploded 1 | . 1 . . Melee . | . . . . Uniques/NPCs Destroyed . | . . . . Combat | -11 -10 -10 -10 -------- Run | Yrd Mat Min Sub Hostile Shots Fired 101 | . 54 23 24 Missed 30 | . 16 7 7 Hits 71 | . 38 16 17 Projectile 71 | . 38 16 17 Critical Strikes 2 | . 1 . 1 Damage Taken 1066 | . 585 127 354 Core 260 | . 132 25 103 Absorbed by Shields . | . . . . Core Remaining (%) 100 | 100 . . . Volleys Fired 44 | . 28 7 9 Largest 2 | . 2 1 1 Hottest 60 | . 60 20 60 Shots Fired 60 | . 45 7 8 Gun 45 | . 30 7 8 Cannon . | . . . . Launcher 15 | . 15 . . Special . | . . . . Kinetic 26 | . 19 7 . Thermal 8 | . . . 8 Explosive 15 | . 15 . . Electromagnetic 11 | . 11 . . Robot Hit Streak 6 | . 6 2 5 Robot Miss Streak 3 | . 2 3 1 Penetration Max . | . . . . Secondary Targets 2 | . 2 . . Max Gunslinging Chain 1 | . 1 . . Shots Hit Robots 45 | . 30 7 8 Core Hits 32 | . 30 1 1 Critical Kills . | . . . . Critical Parts Destroyed . | . . . . Critical Strikes . | . . . . Melee Attacks 6 | . . 4 2 Impact . | . . . . Slashing . | . . . . Piercing . | . . . . Sneak Attacks 4 | . . 4 . Combat Hostiles . | . . . . Follow-up Attacks . | . . . . Damage Inflicted 857 | . 692 20 145 Guns 385 | . 222 20 143 Cannons . | . . . . Explosions 470 | . 470 . . Melee . | . . . . Ramming 2 | . . . 2 Kinetic 125 | . 105 20 . Thermal 143 | . . . 143 Explosive 470 | . 470 . . Electromagnetic 117 | . 117 . . Impact . | . . . . Slashing . | . . . . Piercing . | . . . . Highest Corruption . | . . . . Average Corruption . | . . . . Corruption Purged . | . . . . Corruption Blocked . | . . . . Overload Shots . | . . . . Overflow Damage 14 | . 14 . . Projectiles . | . . . . Explosions 14 | . 14 . . Melee . | . . . . Knockbacks . | . . . . Impact . | . . . . Kinetic . | . . . . Secondary . | . . . . Self-Inflicted Damage 107 | . 107 . . Shots 6 | . 6 . . Rammed . | . . . . Targets Rammed 2 | . . . 2 Kicked 2 | . . . 2 Crushed . | . . . . Highest Temperature 201 | . 201 . . Average Temperature 100 | . 100 . . Received Heat Transfer 345 | . 261 . 84 Siege Activations . | . . . . Martial Activations . | . . . . Shielding Activations . | . . . . Robots Disrupted . | . . . . Combat Hostiles . | . . . . Robots Corrupted . | . . . . Combat Hostiles . | . . . . Parts Fried . | . . . . Impact Corruptions . | . . . . Robots Melted . | . . . . Combat Hostiles . | . . . . Parts Melted . | . . . . Heat Transferred 175 | . . . 175 Parts Sabotaged . | . . . . Parts Stolen . | . . . . Parts Stripped . | . . . . Power Chain Reactions . | . . . . Alert | -11 -10 -10 -10 ------- Run | Yrd Mat Min Sub Maximum Alert Level . | . . . . Low Security (%) 100 | 100 100 100 . Level 1 . | . . . . Level 2 . | . . . . Level 3 . | . . . . Level 4 . | . . . . Level 5 . | . . . . High Security . | . . . . Max Security . | . . . . Peak Influence 194 | . 194 77 . Initial 71 | . . 71 . Average 51 | . 79 42 . Influence Increases 330 | . 274 56 . Destroy 0b10 Robot/C 220 | . 180 40 . Destroy 0b10 Robot/NC 15 | . 15 . . Destroy Leader 40 | . 30 10 . Allied During Kill 6 | . . 6 . Destroy Structure 49 | . 49 . . Influence Decreases 330 | . 90 240 . Entered New Map 113 | . . 113 . Time Decay 167 | . 70 97 . Lost Part 50 | . 20 30 . Squads Dispatched 1 | . 1 . . Investigation . | . . . . Extermination . | . . . . Reinforcement 1 | . 1 . . Assault . | . . . . Garrison . | . . . . Intercept . | . . . . Searches Triggered . | . . . . Construction Impeded . | . . . . Haulers Reinforced . | . . . . Active Scanning Responses . | . . . . Cargo Convoy Interrupts . | . . . . Stealth | -11 -10 -10 -10 --------- Run | Yrd Mat Min Sub Distress Signals 1 | . 1 . . Communications Jammed . | . . . . Distress Signals . | . . . . Times Spotted 28 | . 14 3 11 Peak Tracking Total 9 | . 9 3 7 Tactical Retreats . | . . . . Traps | -11 -10 -10 -10 ------- Run | Yrd Mat Min Sub Traps Triggered . | . . . . Indirectly . | . . . . Trap Hack Attempts . | . . . . Triggered . | . . . . Disarmed . | . . . . Reprogrammed . | . . . . Reused . | . . . . Traps Extracted . | . . . . Installed . | . . . . Triggered . | . . . . Machines | -11 -10 -10 -10 ---------- Run | Yrd Mat Min Sub Machines Disabled . | . . . . Max in Single Turn . | . . . . Machines Repaired . | . . . . Machines Dismantled . | . . . . Machines Sabotaged . | . . . . Overloaded Fab Kills . | . . . . Hacking | -11 -10 -10 -10 --------- Run | Yrd Mat Min Sub Machines Accessed 1 | . 1 . . Terminals . | . . . . Fabricators . | . . . . Repair Stations . | . . . . Recycling Units 1 | . 1 . . Scanalyzers . | . . . . Garrison Access . | . . . . Total Hacks 4 | . 4 . . Successful 3 | . 3 . . Failed 1 | . 1 . . Catastrophic . | . . . . Database Lockouts . | . . . . Manual . | . . . . Terminals . | . . . . Fabricators . | . . . . Repair Stations . | . . . . Recycling Units 4 | . 4 . . Scanalyzers . | . . . . Garrison Access . | . . . . Terminal Hacks . | . . . . Fabricator Hacks . | . . . . Repair Station Hacks . | . . . . Recycling Unit Hacks 3 | . 3 . . Process 1 | . 1 . . Report Inventory 1 | . 1 . . Retrieve Matter 1 | . 1 . . Scanalyzer . | . . . . Garrison Access Hacks . | . . . . Unauthorized Hacks . | . . . . Terminals . | . . . . Fabricators . | . . . . Repair Stations . | . . . . Recycling Units . | . . . . Scanalyzers . | . . . . Garrison Access . | . . . . Data Cores Recovered . | . . . . Used . | . . . . Hacking Detections . | . . . . Full Trace Events . | . . . . Feedback Events . | . . . . Feedback Blocked . | . . . . Robot Schematics Acquired . | . . . . Robots Built . | . . . . Authchips . | . . . . Time . | . . . . Total Robot Build Rating . | . . . . Part Schematics Acquired . | . . . . Parts Built . | . . . . Authchips . | . . . . Time . | . . . . Total Part Build Rating . | . . . . Parts Repaired . | . . . . Time . | . . . . Parts Recycled . | . . . . Recycled Matter 7 | . 7 . . Retrieved Matter 7 | . 7 . . Retrieved Components . | . . . . Parts Scanalyzed . | . . . . Part Schematics Acquired . | . . . . Parts Damaged . | . . . . Bothacking | -11 -10 -10 -10 ------------ Run | Yrd Mat Min Sub Used RIF Installer . | . . . . Robots Hacked 2 | . . 1 1 Non-combat 1 | . . 1 . Combat 1 | . . . 1 Robot Hacks Applied 3 | . . 2 1 parse_system 2 | . . 1 1 no_distress 1 | . . 1 . Relay Couplers Released . | . . . . Fabnet Peak Effective % . | . . . . Robots Rewired . | . . . . Allies Hacked . | . . . . Hacks Repelled . | . . . . Allies | -11 -10 -10 -10 -------- Run | Yrd Mat Min Sub Total Allies 2 | . . 2 . Largest Group 2 | . . 2 2 Highest-Rated Group 50 | . . 50 50 Highest-Rated Ally 31 | . . 31 31 Total Orders . | . . . . Ally Attacks 13 | . . 7 6 Total Damage 181 | . . 60 121 Kills 2 | . . 2 . Allies Corrupted . | . . . . Allies Melted . | . . . . Intel | -11 -10 -10 -10 ------- Run | Yrd Mat Min Sub Active Infowar (turns) . | . . . . Robot Analysis Total . | . . . . Derelict Logs Recovered . | . . . . Drone Launches . | . . . . Drone Recoveries . | . . . . Exploration | -11 -10 -10 -10 ------------- Run | Yrd Mat Min Sub Turns Passed 724 | 88 238 212 186 Spaces Moved 356 | 58 103 120 75 Core 16 | 15 . . 1 Treads 325 | 43 103 120 59 Legs 15 | . . . 15 Wheels . | . . . . Hover . | . . . . Flight . | . . . . Fastest Speed 50 | 50 160 160 130 Average Speed 163 | 131 160 160 198 Slowest Speed 400 | 160 160 160 400 Overloaded Moves . | . . . . Propulsion Burnouts . | . . . . Robots Hopped . | . . . . Potential Cave-ins . | . . . . Cave-ins Triggered . | . . . . Exploration Rate (%) 16 | 5 27 26 7 Regions Visited 3 Branch Regions 2 Pre-discovered Areas . | . . . . Known Exits Taken . | . . . . Unknown Exits Taken 3 | 1 1 1 . Scrap Searched . | . . . . Spaces Dug . | . . . . Terrain Destroyed 52 | . 52 . . Melee . | . . . . Projectile . | . . . . AOE 52 | . 52 . . Terrain Rammed . | . . . . Walls Destroyed . | . . . . Machines Disabled . | . . . . Actions | -11 -10 -10 -10 --------- Run | Yrd Mat Min Sub Total 441 | 70 135 133 103 Wait . | . . . . Move 353 | 57 102 119 75 Hop . | . . . . Pick Up 17 | 8 2 1 6 Fast Attach . | . . . . Attach 15 | 4 3 2 6 Detach 1 | . . . 1 Swap . | . . . . Drop 3 | 1 . . 2 Fire 44 | . 28 7 9 Melee 6 | . . 4 2 Ram . | . . . . Kick 2 | . . . 2 Crush . | . . . . Escape Stasis . | . . . . Rewire . | . . . . Trap . | . . . . Miscellaneous . | . . . . Route ------- -11/Scrapyard -10/Materials -10/Mines (discovered 2 exits: [*Mat] / [*Sub]) -10/Subcaves History --------- Turn | Location | Event 9 | -11/Scrapyard | Discovered new exit (range 16) 89 | -11/Scrapyard | Entered Materials 222 | -10/Materials | Core integrity fell below 50% 303 | -10/Materials | Build established: Mutant 314 | -10/Materials | Discovered new exit (range 9) 327 | -10/Materials | Entered Mines 369 | -10/Mines | Met a Derelict bent on vengeance 394 | -10/Mines | Lost 3 parts (1p1n1w) 463 | -10/Mines | Discovered new exit (range 16) 522 | -10/Mines | Discovered new exit (range 11) 539 | -10/Mines | Entered Subcaves 539 | -10/Subcaves | Accompanied by 2 allies 544 | -10/Subcaves | Led the pair of lost Derelicts to an unsafe place 583 | -10/Subcaves | Shifting Twisted Machinery released Sub. Power Source 607 | -10/Subcaves | Shifting Twisted Machinery released Sub. Laser 662 | -10/Subcaves | Ambushed by swarm of Subdwellers 662 | -10/Subcaves | Ambushed by Subdwellers from Twisted Machinery 662 | -10/Subcaves | Ambushed by Subdwellers from Twisted Machinery 662 | -10/Subcaves | Ambushed by Subdwellers from Twisted Machinery 710 | -10/Subcaves | Core integrity fell below 20% 722 | -10/Subcaves | Lost 6 allies 725 | -10/Subcaves | Destroyed by DT-P6W(R) with Subdweller Laser Last Messages --------------- >>parse_system Reading system data... Sub. Laser shoots sparks and powers down. JL-IKA(R) suffers critical hit (Burn). LM-Z9X(g) destroyed. Dropped Broken Sub. Laser. UF-FL2(g) destroyed. Acquired Mak. Leg. Subatomizers dissect the Disposable Heat Sink. Acquired Myomer Leg. DT-P6W(R) affixes Scrap Shield Fragment to Scrap Shield. Acquired Phase Shifter. Dropped Scrap Shield. Jacked DT-P6W(R)... Datajack destroyed. Lgt. Ion Engine destroyed. Phase Shifter destroyed. Kicked JL-IKA(R) out of the way. Kicked D2-317(R) out of the way. Map ----- +----------------------------------------------------+ | | | | | ????????????????????????????????????????????? | | ????????????????????????????????????????????? | | ????????????????????????????????????????????? | | ????????????????????????????????????????????? | | ????????????????????????????????????????????? | | ????????????????????????????????????????????? | | ????????????????????????????????????????????? | | ????????????????????????????????????????????? | | ????????????????????????????????????????????? | | ????????????????????????????????????????????? | | ????????????????????????????????????????????? | | ????????????????????????????????????????????? | | ????????????????????????????????????????????? | | ????????????????????????????????????????????? | | ????????????????????????##??????????????????? | | ???????????????????????# ##?????????????????? | | ??????????????????????? ##????????????????? | | ??????????????????????? ##???#< ?????????? | | ??????????????????????# ### ?????????? | | ??????????????###?????# ?????????? | | ??????????????# ###### ??????????? | | ??????????????# ## #????????????? | | ??????????????# R #?????????????? | | ??????????????# R @R #?????????????? | | ??????????????# R# # #?????????? | | ??????????????# # #??????????????????? | | ??????????????## ##![ ##??????????????????? | | ???????????????# ####! !#??????????????????? | | ???????????????# ###/[[##??????????????????? | | ???????????????#####=%= #???????????????????? | | ??????????????????# =& *##??????????????????? | | ?????????????????## ! % [#??????????????????? | | ???????????????### !=[!%=!????? #???????????? | | ???????????????# &%*!%#### ##??????????? | | ???????????????# *![ # ?????????? | | ???????????????# % ???????? | | ???????????????##" ???????? | | ????????????????##" ! #????????? | | ?????????????????#"=%% "## ????????? | | ?????????????????# "=%!"#?# #????????? | | ?????????????????# " #?? ## ?????????? | | ?????????????????##" ### ##?? ?????????? | | ??????????????????## *%!" ##??????????????? | | ?????????????????##"" " #???????????????? | | ????????????????##""" ##??????????????? | | ????????????????#""""" " #??????????????? | | ????????????????##""" # "" #?????????????? | | ?????????????????###" ##"" #?????????????? | +----------------------------------------------------+ Best States ------------- Heat Dissipation 25 Energy Generation 10 Energy Capacity 250 Matter Stores 282 Matter Capacity 300 Sight Range 16 Terrain Scan Density 10 Armor Coverage 800 Phase Shifting 5 Evasion (%) 55 Recoil Reduction 2 Item Schematics ----------------- None Robot Schematics ------------------ None Fabricated ------------ Nothing Repaired ---------- Nothing Alien Tech Used ----------------- None Achievements -------------- None Challenges ------------ None Game ------ Seed FlightPhasingTreads Manual? 0 Play Time 00:12:07 Cumulative 2.7 hours Start 2025.07.18 @ 19:33:46 End 2025.07.18 @ 19:45:28 Sessions 1 Manual Loads 0 Difficulty Rogue Special Mode None Game No. 9 Rogue 9 Adventurer 0 Explorer 0 Win Type - Total 0 Types 0/0/0/0/0/0/0/0/0/0 Lore% 1 Gallery% 6 Achievement% 5 Wizard Run 0 Options --------- Layout 1 ASCII 0 Keyboard 0 Movement Mouse Keybinds 0 Fullscreen 1 Font 24/Smallcaps Map View 50x35 Zoom Use 0% Tactical HUD 0 Map Filters NONE Filters NONE Steam 1 RUN: 100b1437-cddd-4610-be71-982d465f9fe2